Cogmind - Beta 9.4 @@@ ROGUE MODE // 2020.02.23 @ 19:26:02 Player: BOBIT Result: Destroyed by G-34 Mercenary with Small Laser Performance ------------- Evolutions (0) 0 Regions Visited (1) 200 Robots Destroyed (5) 25 Value Destroyed (111) 111 Prototype IDs (0) 0 Alien Tech Used (0) 0 Bonus (0) 0 TOTAL SCORE: 336 Bonus ------- None Cogmind --------- Core Integrity 0/250 Matter 230/300 Energy 100/100 System Corruption 0% Temperature Cool (6) Movement Walking (120) Location -10/Materials Parts ------- > --- POWER (1) -------- (None) > --- PROPULSION (2) --- Aluminum Leg Aluminum Leg > --- UTILITY (2) ------ Terrain Scanner > --- WEAPON (2) ------- Hammer Hammer > --- INVENTORY (4) ---- Light Treads Hammer Peak State ------------ > --- POWER ------------ Light Ion Engine > --- PROPULSION ------- Compact Wheel Compact Wheel > --- UTILITY ---------- Small Storage Unit Medium Battery > --- WEAPON ----------- Light Assault Rifle Light Assault Rifle > --- INVENTORY -------- Light Ion Engine Light Treads Light Treads Aluminum Leg Aluminum Leg Light Assault Rifle [Rating: 7] Favorites ----------- Power Light Ion Engine Engine Light Ion Engine Propulsion Compact Wheel Treads Light Treads Leg Aluminum Leg Wheel Compact Wheel Flight Unit Flight Unit Utility Small Storage Unit Device Terrain Scanner Storage Small Storage Unit Weapon Light Assault Rifle Energy Gun Medium Laser Ballistic Gun Light Assault Rifle Impact Weapon Hammer Build | -11 -10 ------- Run | Scr Mat Slots Evolved . | . . Power . | . . Propulsion . | . . Utility . | . . Weapon . | . . Parts Attached 26 | 6 20 Power 7 | 1 6 Engine 7 | 1 6 Core . | . . Reactor . | . . Propulsion 6 | 2 4 Treads 1 | . 1 Leg 2 | . 2 Wheel 2 | 2 . Hover . | . . Flight 1 | . 1 Utility 4 | 1 3 Device 1 | . 1 Storage 3 | 1 2 Processor . | . . Hackware . | . . Protection . | . . Artifact . | . . Weapon 9 | 2 7 Energy Gun 2 | . 2 Energy Cannon . | . . Ballistic Gun 5 | 2 3 Ballistic Cannon . | . . Launcher . | . . Special Weapon . | . . Impact Weapon 2 | . 2 Slashing Weapon . | . . Piercing Weapon . | . . Special Melee Weapon . | . . Unidentified Prototypes . | . . Parts Lost 7 | . 7 Power 2 | . 2 Propulsion 3 | . 3 Utility . | . . Weapon 2 | . 2 Highest Loss Streak 5 | . 5 Average Slot Usage (%) 67 | . 67 Engine 7 | . 7 Treads 2 | . 2 Leg 6 | . 6 Wheel 10 | . 10 Flight 1 | . 1 Device 1 | . 1 Storage 11 | . 11 Energy Gun 2 | . 2 Ballistic Gun 15 | . 15 Impact Weapon 6 | . 6 Naked Turns 1 | . 1 Heaviest Build 12 | 9 12 Greatest Support 32 | 32 32 Greatest Overweight (x) . | . . Average Overweight (x) . | . . Largest Inventory Capacity 6 | 6 6 Average Capacity 4 | 5 4 Most Carried 6 | 6 6 Average Carried 4 | 3 4 Final Capacity 6 | 6 6 Final Carried 6 | 6 6 Class Distribution -------------------- 100% | Mutant Dominant Class ---------------- Mutant | -10/Materials Resources | -11 -10 ----------- Run | Scr Mat Matter Collected 401 | 260 141 Remotely . | . . Salvage Created 141 | . 141 Parts 5 | . 5 Haulers Intercepted . | . . Recyclers Shooed . | . . Parts Field Recycled . | . . Retrieved Matter . | . . Parts Self-Destructed . | . . Prevented . | . . Kills | -11 -10 ------- Run | Scr Mat Combat Hostiles Destroyed 5 | . 5 Guns 5 | . 5 Classes Destroyed 2 | . 2 Swarmer 3 | . 3 Grunt 2 | . 2 Best Kill Streak 3 | . 3 Combat Bots Only 3 | . 3 Max Kills in Single Turn 1 | . 1 Gunslinging . | . . Exploded . | . . Melee . | . . Uniques/NPCs Destroyed . | . . Combat | -11 -10 -------- Run | Scr Mat Damage Taken 750 | . 750 Core 250 | . 250 Absorbed by Shields . | . . Core Remaining (%) 100 | 100 . Volleys Fired 41 | . 41 Largest 2 | . 2 Hottest 70 | . 70 Shots Fired 54 | . 54 Gun 54 | . 54 Cannon . | . . Launcher . | . . Special . | . . Kinetic 46 | . 46 Thermal 8 | . 8 Explosive . | . . Electromagnetic . | . . Robot Hit Streak 6 | . 6 Robot Miss Streak 13 | . 13 Penetration Max . | . . Secondary Targets 1 | . 1 Max Gunslinging Chain 1 | . 1 Shots Hit Robots 31 | . 31 Core Hits 11 | . 11 Critical Hits . | . . Critical Kills . | . . Critical Parts Destroyed . | . . Melee Attacks 4 | . 4 Impact 4 | . 4 Slashing . | . . Piercing . | . . Sneak Attacks . | . . Combat Hostiles . | . . Follow-up Attacks 1 | . 1 Damage Inflicted 331 | . 331 Guns 261 | . 261 Cannons . | . . Explosions . | . . Melee 70 | . 70 Ramming . | . . Kinetic 224 | . 224 Thermal 37 | . 37 Explosive . | . . Electromagnetic . | . . Impact 70 | . 70 Slashing . | . . Piercing . | . . Highest Corruption . | . . Average Corruption . | . . Corruption Purged . | . . Overload Shots . | . . Overflow Damage . | . . Projectiles . | . . Explosions . | . . Melee . | . . Knockbacks . | . . Impact . | . . Kinetic . | . . Secondary . | . . Self-Inflicted Damage . | . . Shots . | . . Rammed . | . . Targets Rammed . | . . Kicked . | . . Crushed . | . . Highest Temperature 110 | . 110 Average Temperature 33 | . 33 Received Heat Transfer 198 | . 198 Siege Activations . | . . Robots Corrupted . | . . Combat Hostiles . | . . Parts Fried . | . . Impact Corruptions . | . . Robots Melted . | . . Combat Hostiles . | . . Parts Melted . | . . Heat Transferred 111 | . 111 Parts Sabotaged . | . . Parts Stolen . | . . Parts Stripped . | . . Power Chain Reactions . | . . Missiles Intercepted . | . . Alert | -11 -10 ------- Run | Scr Mat Peak Influence 111 | . 111 Average Influence 28 | . 32 Maximum Alert Level . | . . Low Security (%) 100 | 100 100 Level 1 . | . . Level 2 . | . . Level 3 . | . . Level 4 . | . . Level 5 . | . . High Security . | . . Max Security . | . . Squads Dispatched 1 | . 1 Investigation . | . . Extermination . | . . Reinforcement 1 | . 1 Assault . | . . Garrison . | . . Intercept . | . . Construction Impeded . | . . Haulers Reinforced . | . . Stealth | -11 -10 --------- Run | Scr Mat Distress Signals . | . . Communications Jammed . | . . Distress Signals . | . . Times Spotted 10 | . 10 Peak Tracking Total 3 | . 3 Tactical Retreats 1 | . 1 Traps | -11 -10 ------- Run | Scr Mat Traps Triggered . | . . Indirectly . | . . Trap Hack Attempts . | . . Triggered . | . . Disarmed . | . . Reprogrammed . | . . Reused . | . . Traps Extracted . | . . Installed . | . . Triggered . | . . Machines | -11 -10 ---------- Run | Scr Mat Machines Disabled . | . . Max in Single Turn . | . . Machines Sabotaged . | . . Garrisons Compromised . | . . Overloaded Fab Kills . | . . Fab Network Shutdowns . | . . Hacking | -11 -10 --------- Run | Scr Mat Machines Accessed 1 | . 1 Terminals 1 | . 1 Fabricators . | . . Repair Stations . | . . Recycling Units . | . . Scanalyzers . | . . Garrison Access . | . . Total Hacks 3 | . 3 Successful 1 | . 1 Failed 2 | . 2 Catastrophic 1 | . 1 Database Lockouts . | . . Manual . | . . Terminals 3 | . 3 Fabricators . | . . Repair Stations . | . . Recycling Units . | . . Scanalyzers . | . . Garrison Access . | . . Terminal Hacks 1 | . 1 Scanalyzer Index 1 | . 1 Fabricator Hacks . | . . Repair Station Hacks . | . . Recycling Unit Hacks . | . . Scanalyzer . | . . Garrison Access Hacks . | . . Unauthorized Hacks . | . . Terminals . | . . Fabricators . | . . Repair Stations . | . . Recycling Units . | . . Scanalyzers . | . . Garrison Access . | . . Data Cores Recovered . | . . Used . | . . Hacking Detections 1 | . 1 Full Trace Events . | . . Feedback Events . | . . Feedback Blocked . | . . Robot Schematics Acquired . | . . Robots Built . | . . Matter . | . . Time . | . . Total Robot Build Rating . | . . Part Schematics Acquired . | . . Parts Built . | . . Matter . | . . Time . | . . Total Part Build Rating . | . . Parts Repaired . | . . Time . | . . Parts Recycled . | . . Recycled Matter . | . . Retrieved Matter . | . . Retrieved Components . | . . Parts Scanalyzed . | . . Part Schematics Acquired . | . . Parts Damaged . | . . Bothacking | -11 -10 ------------ Run | Scr Mat Used RIF Installer . | . . Robots Hacked . | . . Non-combat . | . . Combat . | . . Robot Hacks Applied . | . . Relay Couplers Released . | . . Robots Rewired . | . . Allies Hacked . | . . Hacks Repelled . | . . Allies | -11 -10 -------- Run | Scr Mat Total Allies . | . . Largest Group . | . . Highest-Rated Group . | . . Highest-Rated Ally . | . . Total Orders . | . . Ally Attacks . | . . Total Damage . | . . Kills . | . . Allies Corrupted . | . . Allies Melted . | . . Intel | -11 -10 ------- Run | Scr Mat Robot Analysis Total . | . . Derelict Logs Recovered . | . . Drone Launches . | . . Drone Recoveries . | . . Exploration | -11 -10 ------------- Run | Scr Mat Turns Passed 500 | 63 437 Spaces Moved 292 | 50 242 Core 4 | 3 1 Treads 31 | . 31 Legs 53 | . 53 Wheels 169 | 47 122 Hover . | . . Flight 35 | . 35 Fastest Speed 40 | 50 40 Average Speed 102 | 97 103 Slowest Speed 160 | 100 160 Overloaded Moves . | . . Propulsion Burnouts . | . . Robots Hopped . | . . Cave-ins Triggered . | . . Exploration Rate (%) 17 | 3 32 Regions Visited 1 Branch Regions . Pre-discovered Areas . | . . Known Exits Taken . | . . Unknown Exits Taken 1 | 1 . Scrap Searched . | . . Spaces Dug . | . . Terrain Destroyed . | . . Melee . | . . Projectile . | . . AOE . | . . Actions | -11 -10 --------- Run | Scr Mat Total 440 | 61 379 Wait 57 | . 57 Move 291 | 49 242 Hop . | . . Pick Up 9 | 6 3 Fast Attach 15 | 6 9 Attach 6 | . 6 Detach 5 | . 5 Swap 5 | . 5 Drop 8 | . 8 Fire 41 | . 41 Melee 3 | . 3 Ram . | . . Kick . | . . Crush . | . . Escape Stasis . | . . Rewire . | . . Trap . | . . Miscellaneous . | . . Route ------- -11/Scrapyard -10/Materials History --------- Turn | Location | Event 16 | -11/Scrapyard | Discovered new exit (range 15) 64 | -11/Scrapyard | Entered Materials 283 | -10/Materials | Lost 5 parts (1p2n2w) 312 | -10/Materials | Build established: Mutant 314 | -10/Materials | Core integrity fell below 50% 329 | -10/Materials | Core integrity fell below 20% 501 | -10/Materials | Destroyed by G-34 Mercenary with Small Laser Last Messages --------------- 00348_ K-01 Serf collects debris. 00352_ Acquired 43 matter. 00354_ Acquired 51 matter. 00356_ K-01 Serf collects debris. 00359_ Acquired Particle Gun. 00360_ Dropped Lgt. Assault Rifle. 00361_ K-01 Serf collects debris. 00397_ Dropped Lgt. Assault Rifle. 00398_ Dropped Particle Gun. 00400_ Acquired Hammer. 00416_ K-01 Serf cleans the Matter Pump. 00437_ O-16 Technician: "IFF HANDSHAKE FAILED. SECURING TERMINAL." 00446_ ALERT: Hostiles spotted, dispatching reinforcements to Terminal M003. 00453_ Connecting with Terminal... 00453_ Current location identified: Materials >>Index(Scanalyzers) No scanalyzers found. 00459_ Acquired Terrain Scanner. 00493_ Hammer follow-up attack on G-34 Mercenary. Map ----- +----------------------------------------------------+ | | | | | | | | | | | | | | | | | | | | | | | ?????????????????????????????????????????????? | | ?????????????????????????????????????????????? | | ?????????????????????????????????????????????? | | ?????????????????????????????????????????????? | | ?????????????????????????????????????????????? | | ?????????????????????????????????????????????? | | ????????????????######???????????????????????? | | ?????????????#### #???????????????????????? | | ?????????????? #???????????????????????? | | ??????????????? ????????????????????????? | | ????????????????# ????????????????????????? | | ???????????####### ##########???????????????? | | ???????????# # g# #???????????????? | | ???????????# + g ""#???????????????? | | ???????????# """# #@ ""#???????????????? | | ???????????# ????# # T"#???????????????? | | ?????????????????# # ""#???????????????? | | ?????????????????# # """ ""#???????????????? | | ?????????????????# # """ #?????????? ???? | | ?????????????????# # """ #?????????? #?? | | ?????????????????# ##########?????????? #?? | | ???????????####### #################### #?? | | ???????????# ##? | | ???????????# ?? | | ???????????# ??? | | ????######## """ """ """ #???? | | ????# # """ """"""""" #???? | | ????# # """ """"" #???? | | ????# [ + #???? | | ????# [ # #???? | | ????# # #???? | | ????# # [ #???? | | ????################## = #???? | | ?????????????????????#### ############ #???? | | ????????????????????????# #???# # #???? | | ????????????????????????# #???# # #???? | | ????????????????????????# #???# """ #^^ #???? | | ????????????????????????# #???# """ # ^ #???? | | ????????????????????????# #???#!""" # #???? | +----------------------------------------------------+ Best States ------------- Heat Dissipation 25 Energy Generation 10 Energy Capacity 325 Matter Stores 300 Matter Capacity 300 Sight Range 16 Terrain Scan Density 10 Evasion (%) 62 Recoil Reduction 1 Item Schematics ----------------- None Robot Schematics ------------------ None Fabricated ------------ Nothing Alien Tech Used ----------------- None Achievements -------------- None Challenges ------------ None Game ------ Seed AutogunBarrageBoomstick Manual? 0 Play Time 00:12:47 Cumulative 36.0 hours Start 2020.02.23 @ 15:31:53 End 2020.02.23 @ 19:26:02 Sessions 1 Manual Loads 0 Difficulty Rogue Special Mode None Game No. 83 Rogue 83 Adventurer 0 Explorer 0 Win Type - Total 0 Types 0/0/0/0/0/0/0 Lore% 19 Gallery% 41 Achievement% 27 Wizard Run 0 Options --------- ASCII 0 Keyboard 1 Movement Numpad Keybinds 0 Fullscreen 2 Font 18/TerminusBold Map View 76x50 Tactical HUD 1 Map Filters NONE Filters NONE Steam 1 RUN: 790847de-be77-4b87-9018-8c7628a5c9f0